fUST/lending_fUST_20240629
["ID","MTS","AMOUNT","RATE_DAILY","PERIOD"]
[330598646,1719609050174,-500.0,0.00022191,4]
[330598648,1719609050183,-3712.0,0.00022191,4]
[330598650,1719609050194,-2279.24,0.00022191,4]
[330598651,1719609050204,-500.0,0.00022191,4]
[330598652,1719609050214,-500.0,0.00022191,4]
[330598654,1719609050223,-4032.61,0.00022191,4]
[330598656,1719609050233,-1001.0,0.00022191,4]
[330598657,1719609050242,-227.79,0.00022191,4]
[330598659,1719609050252,-2069.86,0.00022191,4]
[330598661,1719609050261,-500.0,0.00022191,4]
[330598663,1719609050271,-5418.01,0.00022191,4]
[330598665,1719609050280,-826.19,0.00022191,4]
[330598667,1719609050290,-500.0,0.00022191,4]
[330598668,1719609050299,-500.0,0.00022191,4]
[330598669,1719609050309,-803.14,0.00022191,4]
[330598670,1719609050318,-60694.4,0.00022191,4]
[330598671,1719609050327,-939.69,0.00022191,4]
[330598672,1719609050336,-2175.07,0.00022191,4]
[330598673,1719609050346,-3733.28,0.00022191,4]
[330598674,1719609050355,-500.0,0.00022191,2]
[330598676,1719609050364,-500.0,0.00022191,4]
[330598678,1719609050374,-521.59,0.00022191,4]
[330598680,1719609050383,-500.0,0.00022191,4]
[330598682,1719609050392,-500.0,0.00022191,4]
[330598684,1719609050401,-500.0,0.00022191,4]
[330598685,1719609050411,-7121.33,0.00022191,4]
[330598686,1719609050420,-834.09,0.00022191,4]
[330598687,1719609050430,-4094.82,0.00022191,4]
[330598688,1719609050439,-582.3,0.00022191,4]
[330598689,1719609050453,-1575.66,0.00022191,4]
[330598690,1719609050464,-689.13,0.00022191,4]
[330598691,1719609050474,-500.0,0.00022191,4]
[330598692,1719609050483,-1770.99,0.00022191,4]
[330598693,1719609050492,-181.76109876,0.00022191,4]
[330598694,1719609050502,-12345.82,0.00022191,4]
[330598695,1719609050511,-563.67,0.00022191,4]
[330598696,1719609050521,-651.08,0.00022191,4]
[330598697,1719609050530,-500.0,0.00022191,4]
[330598698,1719609050541,-500.0,0.00022191,4]
[330598699,1719609050550,-500.0,0.00022191,4]
[330598700,1719609050560,-1018.4,0.00022191,4]
[330598701,1719609050569,-500.0,0.00022191,4]
[330598702,1719609050579,-500.0,0.00022191,4]
[330598703,1719609050589,-500.0,0.00022191,4]
[330598704,1719609050596,-559.89257798,0.00022191,4]
[330598705,1719609050605,-2468.56,0.00022191,4]
[330598706,1719609050614,-12723.98,0.00022191,4]
[330598707,1719609050624,-500.0,0.00022191,4]
[330598708,1719609050633,-1210.66,0.00022191,4]
[330598709,1719609050642,-500.0,0.00022191,4]
[330598710,1719609050652,-500.0,0.00022191,2]
[330598711,1719609050661,-506.89866156,0.00022191,4]
[330598712,1719609050670,-923.2,0.00022191,4]
[330598713,1719609050680,-2010.28,0.00022191,4]
[330598714,1719609050690,-500.0,0.00022191,4]
[330598715,1719609050701,-500.0,0.00022191,4]
[330598716,1719609050710,-11513.48,0.00022191,4]
[330598717,1719609050720,-4814.91,0.00022191,4]
[330598718,1719609050729,-500.0,0.00022191,4]
[330598719,1719609050738,-500.32713276,0.00022191,4]
[330598720,1719609050748,-506.2,0.00022191,4]
[330598721,1719609050758,-527.36555456,0.00022191,4]
[330598722,1719609050767,-10418.44,0.00022191,4]
[330598723,1719609050777,-500.0,0.00022191,4]
[330598724,1719609050787,-250.52586451,0.00022191,4]
[330598725,1719609050796,-500.0,0.00022191,4]
[330598726,1719609050805,-500.0,0.00022191,4]
[330598727,1719609050814,-500.0,0.00022191,4]
[330598728,1719609050824,-500.0,0.00022191,4]
[330598729,1719609050833,-655.11,0.00022191,4]
[330598730,1719609050843,-157.19399006,0.00022191,4]
[330598731,1719609050851,-959.34,0.00022191,4]
[330598732,1719609050861,-1894.29,0.00022191,4]
[330598733,1719609050871,-1813.93,0.00022191,4]
[330598734,1719609050880,-500.0,0.00022191,4]
[330598735,1719609050889,-1715.47,0.00022191,4]
[330598736,1719609050899,-1262.66,0.00022191,4]
[330598737,1719609050908,-500.0,0.00022191,4]
[330598738,1719609050918,-622.15250913,0.00022191,4]
[330598739,1719609050927,-277.31007546,0.00022191,4]
[330598740,1719609050937,-332.29489417,0.00022191,4]
[330598741,1719609050947,-2194.15,0.00022191,4]
[330598742,1719609050956,-629.21227207,0.00022191,4]
[330598743,1719609050965,-761.05,0.00022191,4]
[330598744,1719609050975,-535.3,0.00022191,4]
[330598745,1719609050985,-1055.6,0.00022191,4]
[330598746,1719609050995,-1710.79,0.00022191,4]
[330598747,1719609051011,-500.0,0.00022191,4]
[330598748,1719609051024,-500.0,0.00022191,4]
[330598749,1719609051033,-500.0,0.00022191,4]
[330598750,1719609051045,-528.59,0.00022191,4]
[330598751,1719609051056,-516.56119928,0.00022191,4]
[330598752,1719609051067,-500.0,0.00022191,4]
[330598753,1719609051076,-500.0,0.00022191,4]
[330598754,1719609051089,-979.7,0.00022191,4]
[330598755,1719609051098,-500.0,0.00022191,4]
[330598756,1719609051108,-628.71,0.00022191,4]
[330598757,1719609051118,-750.32,0.00022191,4]
[330598758,1719609051128,-1021.86,0.00022191,4]
[330598759,1719609051137,-558.27635501,0.00022191,4]
[330598760,1719609051147,-500.0,0.00022191,4]
[330598761,1719609051155,-500.0,0.00022191,4]
[330598762,1719609051164,-586.77,0.00022191,4]
[330598763,1719609051173,-500.0,0.00022191,4]
[330598764,1719609051182,-542.23558517,0.00022191,4]
[330598765,1719609051193,-151.0,0.00022191,7]
[330598766,1719609051203,-151.0,0.00022191,7]
[330598767,1719609051212,-10772.11,0.00022191,4]
[330598768,1719609051222,-151.0,0.00022191,7]
[330598769,1719609051231,-151.0,0.00022191,7]
[330598770,1719609051240,-740.26,0.00022191,4]
[330598771,1719609051251,-2850.21,0.00022191,4]
[330598772,1719609051260,-1018.02,0.00022191,4]
[330598773,1719609051269,-1461.16,0.00022191,4]
[330598774,1719609051278,-4038.76,0.00022191,4]
[330598775,1719609051288,-3099.44,0.00022191,4]
[330598776,1719609051298,-500.0,0.00022191,4]
[330598777,1719609051307,-669.76,0.00022191,4]
[330598778,1719609051317,-4127.34,0.00022191,4]
[330598779,1719609051327,-546.35,0.00022191,4]
[330598780,1719609051343,-500.0,0.00022191,4]
[330598781,1719609051357,-600.27,0.00022191,4]
[330598782,1719609051367,-500.0,0.00022191,4]
[330598783,1719609051376,-500.0,0.00022191,4]
[330598784,1719609051386,-513.72147278,0.00022191,4]
[330598785,1719609051395,-500.0,0.00022191,4]
[330598786,1719609051405,-4987.38,0.00022191,4]
[330598787,1719609051414,-3352.17,0.00022191,4]
[330598788,1719609051424,-621.88,0.00022191,4]
[330598789,1719609051432,-500.0,0.00022191,4]
[330598790,1719609051443,-500.0,0.00022191,4]
[330598791,1719609051452,-683.47,0.00022191,4]
[330598792,1719609051461,-1525.02,0.00022191,4]
[330598793,1719609051470,-425.05021713,0.00022191,4]
[330598794,1719609051479,-23476.31,0.00022191,4]
[330598795,1719609051488,-501.73683915,0.00022191,4]
[330598796,1719609051497,-500.0,0.00022191,4]
[330598797,1719609051507,-400.03018551,0.00022191,4]
[330598798,1719609051516,-500.0,0.00022191,2]
[330598799,1719609051526,-6462.45,0.00022191,4]
[330598800,1719609051535,-500.0,0.00022191,4]
[330598801,1719609051544,-9156.13,0.00022191,4]
[330598802,1719609051554,-1587.41,0.00022191,4]
[330598803,1719609051563,-500.0,0.00022191,4]
[330598804,1719609051572,-500.0,0.00022191,4]
[330598805,1719609051582,-594.68796316,0.00022191,4]
[330598806,1719609051591,-2718.89,0.00022191,4]
[330598807,1719609051601,-151.0,0.00022191,2]
[330598808,1719609051611,-151.0,0.00022191,2]
[330598809,1719609051621,-2807.05,0.00022191,4]
[330598810,1719609051630,-500.0,0.00022191,4]
[330598811,1719609051639,-151.0,0.00022191,2]
[330598812,1719609051648,-151.0,0.00022191,2]
[330598813,1719609051658,-523.03649817,0.00022191,4]
[330598814,1719609051668,-1320.21,0.00022191,4]
[330598815,1719609051677,-11697.5,0.00022191,4]
[330598816,1719609051686,-449.45145023,0.00022296,2]
[330598817,1719609051698,-1307.27056711,0.000223,2]
[330598818,1719609051707,-10836.17750652,0.00022393,2]
[330598819,1719609051717,-166.666666,0.00022431,2]
[330598820,1719609051726,-12771.45012619,0.00022465,7]
[330598821,1719609051736,-500.0,0.00022465,4]
[330598822,1719609051745,-1053.33,0.00022465,4]
[330598823,1719609051754,-581.35,0.00022465,4]
[330598824,1719609051765,-500.0,0.00022465,4]
[330598825,1719609051774,-500.0,0.00022465,4]
[330598826,1719609051784,-500.0,0.00022465,4]
[330598827,1719609051793,-500.0,0.00022465,2]
[330598828,1719609051802,-2317.09,0.00022465,4]
[330598829,1719609051812,-500.0,0.00022465,4]
[330598830,1719609051822,-922.96,0.00022465,4]
[330598831,1719609051831,-834.68,0.00022465,4]
[330598832,1719609051841,-500.0,0.00022465,4]
[330598833,1719609051850,-500.0,0.00022465,4]
[330598834,1719609051860,-500.0,0.00022465,4]
[330598835,1719609051869,-513.16946392,0.00022465,4]
[330598836,1719609051878,-500.0,0.00022465,4]
[330598837,1719609051888,-803.38,0.00022465,4]
[330598838,1719609051896,-297.498208,0.00022465,7]
[330598839,1719609051906,-297.498208,0.00022465,7]
[330598840,1719609051915,-514.06740668,0.00022465,4]
[330598841,1719609051924,-297.498208,0.00022465,7]
[330598842,1719609051933,-297.498212,0.00022465,7]
[330598843,1719609051942,-500.0,0.00022465,4]
[330598844,1719609051952,-1513.65,0.00022465,4]
[330598845,1719609051961,-500.0,0.00022465,4]
[330598846,1719609051970,-500.0,0.00022465,4]
[330598847,1719609051978,-969.26,0.00022465,4]
[330598848,1719609051987,-500.0,0.00022465,4]
[330598849,1719609051997,-580.44,0.00022465,4]
[330598850,1719609052011,-1279.12,0.00022465,4]
[330598851,1719609052112,-575.5,0.00022465,4]
[330598852,1719609052129,-750.55,0.00022465,4]
[330598853,1719609052138,-527.85,0.00022465,4]
[330598854,1719609052147,-762.9,0.00022465,4]
[330598855,1719609052156,-527.66606134,0.00022465,4]
[330598856,1719609052165,-500.0,0.00022465,4]
[330598857,1719609052175,-500.0,0.00022465,4]
[330598858,1719609052184,-794.3,0.00022465,4]
[330598859,1719609052195,-500.0,0.00022465,4]
[330598860,1719609052204,-500.0,0.00022465,4]
[330598861,1719609052213,-500.0,0.00022465,4]
[330598862,1719609052223,-500.0,0.00022465,4]
[330598863,1719609052233,-292.64882138,0.00022465,4]
[330598864,1719609052242,-500.0,0.00022465,4]
[330598865,1719609052251,-500.0,0.00022465,4]
[330598866,1719609052261,-500.0,0.00022465,4]
[330598867,1719609052270,-526.04,0.00022465,4]
[330598868,1719609052279,-819.47,0.00022465,4]
[330598869,1719609052289,-205.61777786,0.00022465,4]
[330598870,1719609052298,-905.98,0.00022465,4]
[330598871,1719609052308,-500.0,0.00022465,4]
[330598872,1719609052317,-500.0,0.00022465,4]
[330598873,1719609052326,-507.22141186,0.00022465,4]
[330598874,1719609052338,-500.0,0.00022465,4]
[330598875,1719609052346,-1589.77,0.00022465,4]
[330598876,1719609052356,-500.0,0.00022465,4]
[330598877,1719609052365,-228.50140852,0.00022465,4]
[330598878,1719609052375,-500.0,0.00022465,4]
[330598879,1719609052384,-1414.16,0.00022465,4]
[330598880,1719609052394,-514.41,0.00022465,4]
[330598881,1719609052414,-500.0,0.00022465,4]
[330598882,1719609052426,-500.0,0.00022465,4]
[330598883,1719609052438,-549.62,0.00022465,4]
[330598884,1719609052450,-1020.77,0.00022465,4]
[330598885,1719609052460,-500.0,0.00022465,4]
[330598886,1719609052469,-500.0,0.00022465,4]
[330598887,1719609052483,-500.0,0.00022465,4]
[330598888,1719609052493,-2333.86,0.00022465,4]
[330598889,1719609052503,-500.0,0.00022465,4]
[330598890,1719609052514,-500.0,0.00022465,4]
[330598891,1719609052524,-500.0,0.00022465,4]
[330598892,1719609052535,-718.41,0.00022465,4]
[330598893,1719609052546,-500.0,0.00022465,4]
[330598894,1719609052556,-632.14,0.00022465,4]
[330598895,1719609052567,-500.0,0.00022465,4]
[330598896,1719609052577,-2254.28,0.00022465,4]
[330598897,1719609052587,-1134.77,0.00022465,4]
[330598898,1719609052597,-500.0,0.00022465,4]
[330598899,1719609052607,-500.0,0.00022465,4]
[330598900,1719609052618,-500.0,0.00022465,4]
[330598901,1719609052628,-552.34,0.00022465,4]
[330598902,1719609052638,-655.59,0.00022465,4]
[330598903,1719609052648,-500.0,0.00022465,4]
[330598904,1719609052659,-500.0,0.00022465,4]
[330598905,1719609052670,-500.0,0.00022465,4]
[330598906,1719609052680,-297.61983006,0.00022465,4]
[330598907,1719609052691,-1584.44,0.00022465,4]
[330598908,1719609052704,-705.63,0.00022465,4]
[330598909,1719609052714,-500.0,0.00022465,4]
[330598910,1719609052724,-992.69,0.00022465,4]
[330598911,1719609052734,-644.145098,0.00022465,7]
[330598912,1719609052743,-963.94,0.00022465,4]
[330598913,1719609052753,-500.0,0.00022465,4]
[330598914,1719609052762,-2618.52,0.00022465,4]
[330598915,1719609052773,-500.0,0.00022465,4]
[330598916,1719609052783,-775.03,0.00022465,4]
[330598917,1719609052792,-500.0,0.00022465,4]
[330598918,1719609052802,-500.0,0.00022465,4]
[330598919,1719609052812,-500.0,0.00022465,4]
[330598920,1719609052822,-500.0,0.00022465,4]
[330598921,1719609052832,-1047.09,0.00022465,4]
[330598922,1719609052842,-500.0,0.00022465,4]
[330598923,1719609052852,-597.64,0.00022465,4]
[330598924,1719609052862,-500.0,0.00022465,4]
[330598925,1719609052871,-1602.1,0.00022465,4]
[330598926,1719609052881,-619.46,0.00022465,4]
[330598927,1719609052891,-500.0,0.00022465,4]
[330598928,1719609052901,-748.7,0.00022465,4]
[330598929,1719609052910,-1252.86,0.00022465,4]
[330598930,1719609052920,-500.0,0.00022465,4]
[330598931,1719609052930,-725.68,0.00022465,4]
[330598932,1719609052940,-500.0,0.00022465,4]
[330598933,1719609052950,-3105.39,0.00022465,4]
[330598934,1719609052960,-500.0,0.00022465,4]
[330598935,1719609052970,-500.0,0.00022465,4]
[330598936,1719609052979,-500.0,0.00022465,4]
[330598937,1719609052989,-500.0,0.00022465,4]
[330598938,1719609052999,-1391.86,0.00022465,4]
[330598939,1719609053010,-569.72238146,0.00022465,4]
[330598940,1719609053020,-500.0,0.00022465,4]
[330598941,1719609053030,-1221.39,0.00022465,4]
[330598942,1719609053040,-500.0,0.00022465,4]
[330598943,1719609053050,-598.89,0.00022465,4]
[330598944,1719609053060,-500.0,0.00022465,4]
[330598945,1719609053070,-761.97,0.00022465,4]
[330598946,1719609053079,-500.0,0.00022465,4]
[330598947,1719609053092,-500.0,0.00022465,4]
[330598948,1719609053102,-151.44523089,0.00022465,4]
[330598949,1719609053112,-500.0,0.00022465,4]
[330598950,1719609053121,-1916.95,0.00022465,4]
[330598951,1719609053131,-500.0,0.00022465,4]
[330598952,1719609053141,-500.0,0.00022465,4]
[330598953,1719609053150,-500.0,0.00022465,4]
[330598954,1719609053159,-911.28,0.00022465,4]
[330598955,1719609053169,-500.0,0.00022465,4]
[330598956,1719609053179,-3430.95,0.00022465,4]
[330598957,1719609053189,-1274.5,0.00022465,2]
[330598958,1719609053198,-500.0,0.00022465,4]
[330598959,1719609053209,-786.07,0.00022465,4]
[330598960,1719609053219,-1472.43,0.00022465,4]
[330598961,1719609053228,-2096.46,0.00022465,4]
[330598962,1719609053238,-460.35867064,0.00022465,4]
[330598963,1719609053248,-500.0,0.00022465,4]
[330598964,1719609053261,-32522.18,0.00022465,4]
[330598965,1719609053271,-500.0,0.00022465,4]
[330598966,1719609053280,-500.0,0.00022465,4]
[330598967,1719609053290,-713.1,0.00022465,4]
[330598968,1719609053299,-1080.39,0.00022465,4]
[330598969,1719609053309,-500.0,0.00022465,4]
[330598970,1719609053318,-500.0,0.00022465,4]
[330598971,1719609053328,-500.0,0.00022465,4]
[330598972,1719609053337,-500.0,0.00022465,4]
[330598973,1719609053347,-2759.26,0.00022465,4]
[330598974,1719609053357,-331.65676581,0.00022465,4]
[330598975,1719609053366,-1561.25,0.00022465,4]
[330598976,1719609053376,-500.0,0.00022465,4]
[330598977,1719609053386,-500.0,0.00022465,4]
[330598978,1719609053396,-1056.09,0.00022465,4]
[330598979,1719609053406,-500.0,0.00022465,4]
[330598980,1719609053416,-500.0,0.00022465,4]
[330598981,1719609053425,-500.0,0.00022465,4]
[330598982,1719609053435,-626.89,0.00022465,4]
[330598983,1719609053446,-644.23,0.00022465,4]
[330598984,1719609053455,-500.0,0.00022465,4]
[330598985,1719609053464,-919.74,0.00022465,4]
[330598986,1719609053474,-500.0,0.00022465,4]
[330598987,1719609053484,-500.0,0.00022465,4]
[330598988,1719609053494,-500.0,0.00022465,4]
[330598989,1719609053503,-1445.87,0.00022465,4]
[330598990,1719609053514,-526.73,0.00022465,4]
[330598991,1719609053524,-500.0,0.00022465,4]
[330598992,1719609053533,-500.0,0.00022465,4]
[330598993,1719609053543,-500.0,0.00022465,4]
[330598994,1719609053553,-500.0,0.00022465,4]
[330598995,1719609053562,-500.0,0.00022465,4]
[330598996,1719609053572,-900.52,0.00022465,4]
[330598997,1719609053582,-2606.56,0.00022465,4]
[330598998,1719609053592,-500.0,0.00022465,2]
[330598999,1719609053601,-500.0,0.00022465,4]
[330599000,1719609053611,-500.0,0.00022465,4]
[330599001,1719609053620,-2915.15,0.00022465,4]
[330599002,1719609053630,-1075.26,0.00022465,4]
[330599003,1719609053640,-898.0,0.00022465,4]
[330599004,1719609053650,-196.85039836,0.00022465,4]
[330599005,1719609053659,-1017.0,0.00022465,4]
[330599006,1719609053669,-500.0,0.00022465,4]
[330599007,1719609053679,-500.0,0.00022465,4]
[330599008,1719609053689,-500.0,0.00022465,4]
[330599009,1719609053700,-769.17,0.00022465,4]
[330599010,1719609053709,-500.0,0.00022465,4]
[330599011,1719609053719,-724.43,0.00022465,4]
[330599012,1719609053729,-500.0,0.00022465,4]
[330599013,1719609053739,-500.0,0.00022465,4]
[330599014,1719609053748,-500.0,0.00022465,4]
[330599015,1719609053757,-1811.19,0.00022465,4]
[330599016,1719609053768,-500.0,0.00022465,4]
[330599017,1719609053777,-745.75,0.00022465,4]
[330599018,1719609053786,-500.0,0.00022465,4]
[330599019,1719609053796,-500.0,0.00022465,4]
[330599020,1719609053805,-500.0,0.00022465,4]
[330599021,1719609053815,-555.14,0.00022465,4]
[330599022,1719609053824,-500.0,0.00022465,4]
[330599023,1719609053833,-1060.47,0.00022465,4]
[330599024,1719609053843,-561.23,0.00022465,4]
[330599025,1719609053852,-1646.45,0.00022465,4]
[330599026,1719609053861,-500.0,0.00022465,4]
[330599027,1719609053870,-507.2975426,0.00022465,4]
[330599028,1719609053879,-500.0,0.00022465,4]
[330599029,1719609053889,-500.0,0.00022465,4]
[330599030,1719609053898,-1636.48,0.00022465,4]
[330599031,1719609053907,-500.0,0.00022465,4]
[330599032,1719609053916,-2903.41,0.00022465,4]
[330599033,1719609053925,-500.0,0.00022465,4]
[330599034,1719609053935,-500.0,0.00022465,4]
[330599035,1719609053945,-23113.58,0.00022465,4]
[330599036,1719609053955,-882.01,0.00022465,4]
[330599037,1719609053964,-500.0,0.00022465,4]
[330599038,1719609053975,-1643.03,0.00022465,4]
[330599039,1719609053985,-500.0,0.00022465,4]
[330599040,1719609053994,-500.0,0.00022465,4]
[330599041,1719609054007,-628.52,0.00022465,4]
[330599042,1719609054019,-500.0,0.00022465,4]
[330599043,1719609054029,-500.0,0.00022465,4]
[330599044,1719609054039,-1414.53,0.00022465,4]
[330599045,1719609054051,-500.0,0.00022465,4]
[330599046,1719609054062,-500.0,0.00022465,4]
[330599047,1719609054072,-500.0,0.00022465,4]
[330599048,1719609054082,-500.0,0.00022465,4]
[330599049,1719609054094,-11320.71,0.00022465,4]
[330599050,1719609054104,-500.0,0.00022465,4]
[330599051,1719609054114,-555.85,0.00022465,4]
[330599052,1719609054123,-500.0,0.00022465,4]
[330599053,1719609054132,-644.76,0.00022465,4]
[330599054,1719609054141,-585.25,0.00022465,4]
[330599055,1719609054267,-756.94,0.00022465,4]
[330599056,1719609054276,-459.99003146,0.00022465,4]
[330599057,1719609054286,-500.0,0.00022465,4]
[330599058,1719609054296,-1188.67,0.00022465,4]
[330599059,1719609054305,-500.0,0.00022465,4]
[330599060,1719609054315,-1280.69,0.00022465,4]
[330599061,1719609054323,-500.0,0.00022465,4]
[330599062,1719609054332,-788.02,0.00022465,4]
[330599063,1719609054341,-500.0,0.00022465,4]
[330599064,1719609054350,-3712.0,0.00022465,4]
[330599065,1719609054359,-2279.24,0.00022465,4]
[330599066,1719609054368,-500.0,0.00022465,4]
[330599067,1719609054378,-500.0,0.00022465,4]
[330599068,1719609054387,-4032.61,0.00022465,4]
[330599069,1719609054396,-227.79,0.00022465,4]
[330599070,1719609054405,-1001.0,0.00022465,4]
[330599071,1719609054414,-2069.86,0.00022465,4]
[330599072,1719609054423,-500.0,0.00022465,4]
[330599073,1719609054434,-5418.01,0.00022465,4]
[330599074,1719609054445,-826.19,0.00022465,4]
[330599075,1719609054455,-500.0,0.00022465,4]
[330599076,1719609054464,-500.0,0.00022465,4]
[330599077,1719609054474,-803.14,0.00022465,4]
[330599078,1719609054484,-939.69,0.00022465,4]
[330599079,1719609054493,-60694.4,0.00022465,4]
[330599080,1719609054503,-2175.07,0.00022465,4]
[330599081,1719609054513,-3733.28,0.00022465,4]
[330599082,1719609054522,-514.59132369,0.00022465,2]
[330599083,1719609054532,-500.0,0.00022465,4]
[330599084,1719609054542,-521.59,0.00022465,4]
[330599085,1719609054552,-500.0,0.00022465,4]
[330599086,1719609054562,-500.0,0.00022465,4]
[330599087,1719609054573,-500.0,0.00022465,4]
[330599088,1719609054584,-7121.33,0.00022465,4]
[330599089,1719609054601,-834.09,0.00022465,4]
[330599090,1719609054618,-4094.82,0.00022465,4]
[330599091,1719609054629,-582.3,0.00022465,4]
[330599092,1719609054641,-689.13,0.00022465,4]
[330599093,1719609054653,-1575.66,0.00022465,4]
[330599094,1719609054664,-364.01765457,0.00022465,4]
[330599095,1719609054676,-1770.99,0.00022465,4]
[330599096,1719609054686,-12345.82,0.00022465,4]
[330599097,1719609054700,-563.67,0.00022465,4]
[330599098,1719609054711,-651.08,0.00022465,4]
[330599099,1719609054722,-500.0,0.00022465,4]
[330599100,1719609054733,-500.0,0.00022465,4]
[330599101,1719609054743,-500.0,0.00022465,4]
[330599102,1719609054754,-1018.4,0.00022465,4]
[330599103,1719609054765,-500.0,0.00022465,4]
[330599104,1719609054776,-500.0,0.00022465,4]
[330599105,1719609054786,-2468.56,0.00022465,4]
[330599106,1719609054798,-12723.98,0.00022465,4]
[330599107,1719609054809,-500.0,0.00022465,4]
[330599108,1719609054820,-500.0,0.00022465,4]
[330599109,1719609054830,-1210.66,0.00022465,4]
[330599110,1719609054840,-538.45930763,0.00022465,4]
[330599111,1719609054851,-500.0,0.00022465,2]
[330599112,1719609054862,-923.2,0.00022465,4]
[330599113,1719609054873,-2010.28,0.00022465,4]
[330599114,1719609054883,-500.0,0.00022465,4]
[330599115,1719609054893,-526.44408998,0.00022465,4]
[330599116,1719609054904,-11513.48,0.00022465,4]
[330599117,1719609054914,-4814.91,0.00022465,4]
[330599118,1719609054924,-500.0,0.00022465,4]
[330599119,1719609054935,-506.2,0.00022465,4]
[330599120,1719609054944,-10418.44,0.00022465,4]
[330599121,1719609054956,-500.0,0.00022465,4]
[330599122,1719609054966,-500.0,0.00022465,4]
[330599123,1719609054976,-500.0,0.00022465,4]
[330599124,1719609054986,-500.0,0.00022465,4]
[330599125,1719609054996,-500.0,0.00022465,4]
[330599126,1719609055010,-655.11,0.00022465,4]
[330599127,1719609055020,-959.34,0.00022465,4]
[330599128,1719609055029,-1894.29,0.00022465,4]
[330599129,1719609055042,-1813.93,0.00022465,4]
[330599130,1719609055052,-500.0,0.00022465,4]
[330599131,1719609055062,-1715.47,0.00022465,4]
[330599132,1719609055072,-1262.66,0.00022465,4]
[330599133,1719609055083,-500.0,0.00022465,4]
[330599134,1719609055093,-2194.15,0.00022465,4]
[330599135,1719609055103,-761.05,0.00022465,4]
[330599136,1719609055114,-535.3,0.00022465,4]
[330599137,1719609055124,-1055.6,0.00022465,4]
[330599138,1719609055134,-1710.79,0.00022465,4]
[330599139,1719609055144,-500.0,0.00022465,4]
[330599140,1719609055155,-500.0,0.00022465,4]
[330599141,1719609055164,-512.74260696,0.00022465,4]
[330599142,1719609055174,-528.59,0.00022465,4]
[330599143,1719609055184,-482.65779915,0.00022465,4]
[330599144,1719609055193,-500.0,0.00022465,4]
[330599145,1719609055205,-979.7,0.00022465,4]
[330599146,1719609055215,-500.0,0.00022465,4]
[330599147,1719609055225,-628.71,0.00022465,4]
[330599148,1719609055235,-750.32,0.00022465,4]
[330599149,1719609055245,-1021.86,0.00022465,4]
[330599150,1719609055255,-310.80299181,0.00022465,4]
[330599151,1719609055265,-500.0,0.00022465,4]
[330599152,1719609055275,-586.77,0.00022465,4]
[330599153,1719609055284,-500.0,0.00022465,4]
[330599154,1719609055294,-10772.11,0.00022465,4]
[330599155,1719609055304,-151.0,0.00022465,7]
[330599156,1719609055314,-740.26,0.00022465,4]
[330599157,1719609055323,-151.0,0.00022465,7]
[330599158,1719609055334,-151.0,0.00022465,7]
[330599159,1719609055344,-2850.21,0.00022465,4]